fUSD/lending_fUSD_20241210
["ID","MTS","AMOUNT","RATE_DAILY","PERIOD"]
[344859583,1733839872161,-2740.12,0.00010958,2]
[344859584,1733839872171,-500.0,0.00010958,2]
[344859585,1733839872180,-500.0,0.00010958,2]
[344859586,1733839872189,-500.0,0.00010958,2]
[344859587,1733839872198,-500.0,0.00010958,2]
[344859588,1733839872207,-500.0,0.00010958,2]
[344859589,1733839872217,-500.0,0.00010958,2]
[344859590,1733839872226,-500.0,0.00010958,2]
[344859591,1733839872236,-322.39639709,0.00010958,2]
[344859592,1733839872246,-500.0,0.00010958,2]
[344859593,1733839872255,-500.0,0.00010958,2]
[344859594,1733839872264,-368.7,0.00010958,2]
[344859595,1733839872274,-500.0,0.00010958,2]
[344859596,1733839872283,-1258.69,0.00010958,2]
[344859597,1733839872292,-1258.69,0.00010958,2]
[344859598,1733839872301,-579.15058164,0.00010958,2]
[344859599,1733839872311,-1258.69,0.00010958,2]
[344859600,1733839872323,-500.0,0.00010958,2]
[344859601,1733839872332,-500.0,0.00010958,2]
[344859602,1733839872341,-1258.69,0.00010958,2]
[344859603,1733839872350,-500.0,0.00010958,2]
[344859604,1733839872488,-500.0,0.00010958,2]
[344859605,1733839872497,-502.98903598,0.00010958,2]
[344859606,1733839872507,-699.44019548,0.00010967,2]
[344859607,1733839872517,-1749.00519804,0.00010969,2]
[344859608,1733839872526,-699.44019548,0.00010973,2]
[344859609,1733839872535,-1749.00519804,0.00010974,2]
[344859610,1733839872545,-699.44019548,0.00010977,2]
[344859611,1733839872555,-200.0,0.00010981,2]
[344859612,1733839872564,-1500.0,0.00010981,2]
[344859613,1733839872576,-1749.00519804,0.00010982,2]
[344859614,1733839872585,-642.3,0.00010985,2]
[344859615,1733839872595,-500.0,0.00010985,2]
[344859616,1733839872603,-1372.5,0.00010985,2]
[344859617,1733839872612,-500.0,0.00010985,2]
[344859618,1733839872622,-500.0,0.00010985,2]
[344859619,1733839872631,-500.0,0.00010985,2]
[344859620,1733839872640,-2382.05,0.00010985,2]
[344859621,1733839872650,-500.0,0.00010985,2]
[344859622,1733839872659,-500.0,0.00010985,2]
[344859623,1733839872668,-500.0,0.00010985,2]
[344859624,1733839872677,-619.14,0.00010985,2]
[344859625,1733839872687,-900.6,0.00010985,2]
[344859626,1733839872696,-1451.42,0.00010985,2]
[344859627,1733839872706,-775.51,0.00010985,2]
[344859628,1733839872715,-1023.45,0.00010985,2]
[344859629,1733839872725,-1522.77,0.00010985,2]
[344859630,1733839872734,-723.59,0.00010985,2]
[344859631,1733839872743,-500.0,0.00010985,2]
[344859632,1733839872752,-1752.83,0.00010985,2]
[344859633,1733839872761,-1232.23,0.00010985,2]
[344859634,1733839872770,-871.02,0.00010985,2]
[344859635,1733839872779,-1850.48,0.00010985,2]
[344859636,1733839872788,-1884.09,0.00010985,2]
[344859637,1733839872797,-662.39,0.00010985,2]
[344859638,1733839872806,-500.0,0.00010985,2]
[344859639,1733839872815,-1257.96,0.00010985,2]
[344859640,1733839872825,-500.0,0.00010985,2]
[344859641,1733839872834,-500.0,0.00010985,2]
[344859642,1733839872843,-500.0,0.00010985,2]
[344859643,1733839872853,-504.03,0.00010985,2]
[344859644,1733839872862,-926.29,0.00010985,2]
[344859645,1733839872871,-500.0,0.00010985,2]
[344859646,1733839872880,-500.0,0.00010985,2]
[344859647,1733839872889,-500.0,0.00010985,2]
[344859648,1733839872898,-671.79,0.00010985,2]
[344859649,1733839872907,-500.0,0.00010985,2]
[344859650,1733839872916,-551.96,0.00010985,2]
[344859651,1733839872925,-500.0,0.00010985,2]
[344859652,1733839872935,-500.0,0.00010985,2]
[344859653,1733839872944,-500.0,0.00010985,2]
[344859654,1733839872953,-776.4,0.00010985,2]
[344859655,1733839872963,-848.11,0.00010985,2]
[344859656,1733839872972,-3447.48,0.00010985,2]
[344859657,1733839872982,-500.0,0.00010985,2]
[344859658,1733839872991,-500.0,0.00010985,2]
[344859659,1733839873001,-635.02,0.00010985,2]
[344859660,1733839873010,-699.44019548,0.00010986,2]
[344859661,1733839873020,-1749.00519804,0.00010986,2]
[344859662,1733839873029,-1749.00519804,0.00010991,2]
[344859663,1733839873039,-200.0,0.00010992,2]
[344859664,1733839873048,-699.44019548,0.00010994,2]
[344859665,1733839873060,-1749.00519804,0.00010994,2]
[344859666,1733839873071,-251.65257741,0.00010997,2]
[344859667,1733839873083,-2418.93850764,0.00010997,2]
[344859668,1733839873094,-500.0,0.00010997,2]
[344859669,1733839873104,-1614.36675488,0.00010997,2]
[344859670,1733839873114,-2740.12,0.00010997,2]
[344859671,1733839873123,-500.0,0.00010998,2]
[344859672,1733839873132,-1202.45,0.00010998,2]
[344859673,1733839873141,-500.0,0.00010998,2]
[344859674,1733839873150,-754.12,0.00010998,2]
[344859675,1733839873159,-500.0,0.00010998,2]
[344859676,1733839873170,-500.0,0.00010998,2]
[344859677,1733839873179,-500.0,0.00010998,2]
[344859678,1733839873189,-1527.91,0.00010998,2]
[344859679,1733839873198,-760.21,0.00010998,2]
[344859680,1733839873208,-638.58,0.00010998,2]
[344859681,1733839873218,-619.98,0.00010998,2]
[344859682,1733839873227,-995.84,0.00010998,2]
[344859683,1733839873236,-1723.78,0.00010998,2]
[344859684,1733839873245,-525.26,0.00010998,2]
[344859685,1733839873255,-500.0,0.00010998,2]
[344859686,1733839873264,-1832.17,0.00010998,2]
[344859687,1733839873274,-500.0,0.00010998,2]
[344859688,1733839873283,-1172.25,0.00010998,2]
[344859689,1733839873292,-801.09,0.00010998,2]
[344859690,1733839873302,-500.0,0.00010998,2]
[344859691,1733839873311,-500.0,0.00010998,2]
[344859692,1733839873325,-423.43583696,0.00010998,2]
[344859693,1733839873334,-1980.25,0.00010998,2]
[344859694,1733839873343,-500.0,0.00010998,2]
[344859695,1733839873352,-1914.81,0.00010998,2]
[344859696,1733839873362,-294.97742708,0.00010998,2]
[344859697,1733839873371,-500.0,0.00010998,2]
[344859698,1733839873380,-500.0,0.00010998,2]
[344859699,1733839873390,-500.0,0.00010998,2]
[344859700,1733839873399,-3807.35,0.00010998,2]
[344859701,1733839873408,-539.56,0.00010998,2]
[344859702,1733839873418,-500.0,0.00010998,2]
[344859703,1733839873428,-500.0,0.00010998,2]
[344859704,1733839873437,-2155.59,0.00010998,2]
[344859705,1733839873447,-1360.34,0.00010998,2]
[344859706,1733839873456,-528.66,0.00010998,2]
[344859707,1733839873469,-1587.49,0.00010998,2]
[344859708,1733839873479,-1609.34,0.00010998,2]
[344859709,1733839873488,-500.0,0.00010998,2]
[344859710,1733839873498,-500.0,0.00010998,2]
[344859711,1733839873507,-500.0,0.00010998,2]
[344859712,1733839873516,-2331.83,0.00010998,2]
[344859713,1733839873526,-500.0,0.00010998,2]
[344859714,1733839873535,-500.0,0.00010998,2]
[344859715,1733839873545,-566.64,0.00010998,2]
[344859716,1733839873554,-1369.84,0.00010998,2]
[344859717,1733839873564,-500.0,0.00010998,2]
[344859718,1733839873575,-1998.53,0.00010998,2]
[344859719,1733839873584,-573.96,0.00010998,2]
[344859720,1733839873593,-1478.36,0.00010998,2]
[344859721,1733839873602,-500.0,0.00010998,2]
[344859722,1733839873612,-500.0,0.00010998,2]
[344859723,1733839873622,-1724.11,0.00010998,2]
[344859724,1733839873631,-1280.86,0.00010998,2]
[344859725,1733839873641,-500.0,0.00010998,2]
[344859726,1733839873650,-1011.59,0.00010998,2]
[344859727,1733839873659,-929.54,0.00010998,2]
[344859728,1733839873669,-591.47,0.00010998,2]
[344859729,1733839873678,-500.0,0.00010998,2]
[344859730,1733839873687,-500.0,0.00010998,2]
[344859731,1733839873696,-500.0,0.00010998,2]
[344859732,1733839873705,-500.0,0.00010998,2]
[344859733,1733839873714,-1222.98,0.00010998,2]
[344859734,1733839873723,-500.0,0.00010998,2]
[344859735,1733839873733,-500.0,0.00010998,2]
[344859736,1733839873743,-549.67,0.00010998,2]
[344859737,1733839873752,-500.0,0.00010998,2]
[344859738,1733839873762,-513.59,0.00010998,2]
[344859739,1733839873771,-511.83,0.00010998,2]
[344859740,1733839873780,-949.8,0.00010998,2]
[344859741,1733839873789,-500.0,0.00010998,2]
[344859742,1733839873799,-500.0,0.00010998,2]
[344859743,1733839873809,-500.0,0.00010998,2]
[344859744,1733839873818,-501.76,0.00010998,2]
[344859745,1733839873830,-500.0,0.00010998,2]
[344859746,1733839873839,-500.0,0.00010998,2]
[344859747,1733839873849,-500.0,0.00010998,2]
[344859748,1733839873859,-500.0,0.00010998,2]
[344859749,1733839873868,-500.0,0.00010998,2]
[344859750,1733839873877,-500.0,0.00010998,2]
[344859751,1733839873887,-844.79,0.00010998,2]
[344859752,1733839873896,-674.41,0.00010998,2]
[344859753,1733839873905,-1453.14,0.00010998,2]
[344859754,1733839873914,-500.0,0.00010998,2]
[344859755,1733839873923,-500.0,0.00010998,2]
[344859756,1733839873933,-1067.44,0.00010998,2]
[344859757,1733839873942,-1189.7,0.00010998,2]
[344859758,1733839873952,-654.3,0.00010998,2]
[344859759,1733839873961,-832.33,0.00010998,2]
[344859760,1733839873971,-1363.84,0.00010998,2]
[344859761,1733839873980,-660.0,0.00010998,2]
[344859762,1733839873990,-500.0,0.00010998,2]
[344859763,1733839874000,-500.0,0.00010998,2]
[344859764,1733839874009,-500.0,0.00010998,2]
[344859765,1733839874018,-500.0,0.00010998,2]
[344859766,1733839874027,-526.69,0.00010998,2]
[344859767,1733839874037,-859.27,0.00010998,2]
[344859768,1733839874046,-853.14,0.00010998,2]
[344859769,1733839874055,-500.0,0.00010998,2]
[344859770,1733839874064,-769.95,0.00010998,2]
[344859771,1733839874076,-500.0,0.00010998,2]
[344859772,1733839874087,-500.0,0.00010998,2]
[344859773,1733839874096,-753.51,0.00010998,2]
[344859774,1733839874105,-500.0,0.00010998,2]
[344859775,1733839874114,-215.43428677,0.00010998,2]
[344859776,1733839874123,-500.0,0.00010998,2]
[344859777,1733839874132,-500.0,0.00010998,2]
[344859778,1733839874141,-500.0,0.00010998,2]
[344859779,1733839874150,-1423.68,0.00010998,2]
[344859780,1733839874159,-500.0,0.00010998,2]
[344859781,1733839874168,-514.26,0.00010998,2]
[344859782,1733839874178,-1027.75,0.00010998,2]
[344859783,1733839874187,-500.0,0.00010998,2]
[344859784,1733839874197,-921.86,0.00010998,2]
[344859785,1733839874207,-500.0,0.00010998,2]
[344859786,1733839874216,-500.0,0.00010998,2]
[344859787,1733839874224,-557.9,0.00010998,2]
[344859788,1733839874234,-500.0,0.00010998,2]
[344859789,1733839874243,-500.0,0.00010998,2]
[344859790,1733839874253,-500.0,0.00010998,2]
[344859791,1733839874262,-506.81310381,0.00010998,2]
[344859792,1733839874271,-1239.78,0.00010998,2]
[344859793,1733839874280,-572.87,0.00010998,2]
[344859794,1733839874290,-892.62,0.00010998,2]
[344859795,1733839874299,-545.73,0.00010998,2]
[344859796,1733839874309,-500.0,0.00010998,2]
[344859797,1733839874319,-500.0,0.00010998,2]
[344859798,1733839874332,-1598.86,0.00010998,2]
[344859799,1733839874341,-1233.92,0.00010998,2]
[344859800,1733839874350,-727.9,0.00010998,2]
[344859801,1733839874360,-1090.63,0.00010998,2]
[344859802,1733839874369,-676.99,0.00010998,2]
[344859803,1733839874379,-1325.86,0.00010998,2]
[344859804,1733839874389,-847.76,0.00010998,2]
[344859805,1733839874398,-500.0,0.00010998,2]
[344859806,1733839874408,-500.0,0.00010998,2]
[344859807,1733839874418,-500.0,0.00010998,2]
[344859808,1733839874427,-166.638266,0.00010999,2]
[344859809,1733839874437,-699.44019548,0.00011,2]
[344859810,1733839874447,-2063.53,0.0001109,2]
[344859811,1733839874456,-500.0,0.00011095,2]
[344859812,1733839874466,-686.61,0.00011095,2]
[344859813,1733839874478,-2281.05,0.00011095,2]
[344859814,1733839874488,-793.9,0.00011095,2]
[344859815,1733839874497,-500.0,0.00011095,2]
[344859816,1733839874507,-500.0,0.00011095,2]
[344859817,1733839874520,-500.0,0.00011095,2]
[344859818,1733839874531,-476.26987184,0.00011095,2]
[344859819,1733839874541,-1437.4,0.00011095,2]
[344859820,1733839874550,-500.0,0.00011095,2]
[344859821,1733839874560,-608.96,0.00011095,2]
[344859822,1733839874569,-5393.4,0.00011095,2]
[344859823,1733839874580,-1069.57,0.00011095,2]
[344859824,1733839874590,-590.92,0.00011096,2]
[344859825,1733839874599,-500.0,0.00011096,2]
[344859826,1733839874609,-601.08,0.00011096,2]
[344859827,1733839874618,-554.21,0.00011096,2]
[344859828,1733839874628,-500.0,0.00011096,2]
[344859829,1733839874637,-500.0,0.00011096,2]
[344859830,1733839874646,-500.0,0.00011096,2]
[344859831,1733839874656,-210.9,0.00011096,2]
[344859832,1733839874665,-500.0,0.00011096,2]
[344859833,1733839874675,-1202.45,0.00011096,2]
[344859834,1733839874685,-500.0,0.00011096,2]
[344859835,1733839874694,-754.12,0.00011096,2]
[344859836,1733839874704,-500.0,0.00011096,2]
[344859837,1733839874713,-500.0,0.00011096,2]
[344859838,1733839874723,-500.0,0.00011096,2]
[344859839,1733839874734,-1527.91,0.00011096,2]
[344859840,1733839874743,-760.21,0.00011096,2]
[344859841,1733839874753,-638.58,0.00011096,2]
[344859842,1733839874763,-619.98,0.00011096,2]
[344859843,1733839874776,-995.84,0.00011096,2]
[344859844,1733839874786,-1723.78,0.00011096,2]
[344859845,1733839874796,-642.3,0.00011096,2]
[344859846,1733839874805,-525.26,0.00011096,2]
[344859847,1733839874814,-500.0,0.00011096,2]
[344859848,1733839874827,-1832.17,0.00011096,2]
[344859849,1733839874836,-360.19,0.00011096,2]
[344859850,1733839874847,-500.0,0.00011096,2]
[344859851,1733839874856,-1172.25,0.00011096,2]
[344859852,1733839874866,-1372.5,0.00011096,2]
[344859853,1733839874875,-801.09,0.00011096,2]
[344859854,1733839874885,-408.84,0.00011096,2]
[344859855,1733839874894,-500.0,0.00011096,2]
[344859856,1733839874903,-500.0,0.00011096,2]
[344859857,1733839874913,-500.0,0.00011096,2]
[344859858,1733839874923,-1980.25,0.00011096,2]
[344859859,1733839874932,-500.0,0.00011096,2]
[344859860,1733839874941,-500.0,0.00011096,2]
[344859861,1733839874952,-1914.81,0.00011096,2]
[344859862,1733839874961,-2382.05,0.00011096,2]
[344859863,1733839874971,-500.0,0.00011096,2]
[344859864,1733839874980,-196.49954997,0.00011096,2]
[344859865,1733839874989,-500.0,0.00011096,2]
[344859866,1733839874999,-500.0,0.00011096,2]
[344859867,1733839875009,-500.0,0.00011096,2]
[344859868,1733839875019,-500.0,0.00011096,2]
[344859869,1733839875029,-3807.35,0.00011096,2]
[344859870,1733839875043,-539.56,0.00011096,2]
[344859871,1733839875052,-500.0,0.00011096,2]
[344859872,1733839875061,-500.0,0.00011096,2]
[344859873,1733839875073,-619.14,0.00011096,2]
[344859874,1733839875084,-2155.59,0.00011096,2]
[344859875,1733839875094,-900.6,0.00011096,2]
[344859876,1733839875103,-1360.34,0.00011096,2]
[344859877,1733839875112,-528.66,0.00011096,2]
[344859878,1733839875123,-1587.49,0.00011096,2]
[344859879,1733839875132,-1609.34,0.00011096,2]
[344859880,1733839875142,-500.0,0.00011096,2]
[344859881,1733839875152,-1451.42,0.00011096,2]
[344859882,1733839875162,-500.0,0.00011096,2]
[344859883,1733839875171,-2331.83,0.00011096,2]
[344859884,1733839875180,-500.0,0.00011096,2]
[344859885,1733839875190,-500.0,0.00011096,2]
[344859886,1733839875199,-566.64,0.00011096,2]
[344859887,1733839875209,-1369.84,0.00011096,2]
[344859888,1733839875218,-500.0,0.00011096,2]
[344859889,1733839875227,-1998.53,0.00011096,2]
[344859890,1733839875237,-573.96,0.00011096,2]
[344859891,1733839875246,-1478.36,0.00011096,2]
[344859892,1733839875255,-500.0,0.00011096,2]
[344859893,1733839875265,-500.0,0.00011096,2]
[344859894,1733839875274,-1724.11,0.00011096,2]
[344859895,1733839875284,-1280.86,0.00011096,2]
[344859896,1733839875294,-500.0,0.00011096,2]
[344859897,1733839875303,-1011.59,0.00011096,2]
[344859898,1733839875312,-775.51,0.00011096,2]
[344859899,1733839875323,-929.54,0.00011096,2]
[344859900,1733839875337,-1023.45,0.00011096,2]
[344859901,1733839875346,-591.47,0.00011096,2]
[344859902,1733839875357,-1522.77,0.00011096,2]
[344859903,1733839875367,-723.59,0.00011096,2]
[344859904,1733839875376,-500.0,0.00011096,2]
[344859905,1733839875385,-500.0,0.00011096,2]
[344859906,1733839875395,-500.0,0.00011096,2]
[344859907,1733839875406,-500.0,0.00011096,2]
[344859908,1733839875415,-1222.98,0.00011096,2]
[344859909,1733839875425,-500.0,0.00011096,2]
[344859910,1733839875434,-500.0,0.00011096,2]
[344859911,1733839875444,-549.67,0.00011096,2]
[344859912,1733839875453,-503.83646586,0.00011096,2]
[344859913,1733839875465,-500.0,0.00011096,2]
[344859914,1733839875476,-513.59,0.00011096,2]
[344859915,1733839875486,-1752.83,0.00011096,2]
[344859916,1733839875495,-511.83,0.00011096,2]
[344859917,1733839875504,-1232.23,0.00011096,2]
[344859918,1733839875514,-949.8,0.00011096,2]
[344859919,1733839875524,-500.0,0.00011096,2]
[344859920,1733839875533,-500.0,0.00011096,2]
[344859921,1733839875546,-871.02,0.00011096,2]
[344859922,1733839875556,-500.0,0.00011096,2]
[344859923,1733839875566,-501.76,0.00011096,2]
[344859924,1733839875578,-500.0,0.00011096,2]
[344859925,1733839875587,-1850.48,0.00011096,2]
[344859926,1733839875597,-500.0,0.00011096,2]
[344859927,1733839875607,-1884.09,0.00011096,2]
[344859928,1733839875617,-500.0,0.00011096,2]
[344859929,1733839875626,-662.39,0.00011096,2]
[344859930,1733839875635,-500.0,0.00011096,2]
[344859931,1733839875645,-500.0,0.00011096,2]
[344859932,1733839875654,-500.0,0.00011096,2]
[344859933,1733839875664,-844.79,0.00011096,2]
[344859934,1733839875673,-674.41,0.00011096,2]
[344859935,1733839875683,-1453.14,0.00011096,2]
[344859936,1733839875692,-500.0,0.00011096,2]
[344859937,1733839875855,-500.0,0.00011096,2]
[344859938,1733839875864,-500.0,0.00011096,2]
[344859939,1733839875874,-1067.44,0.00011096,2]
[344859940,1733839875884,-1189.7,0.00011096,2]
[344859941,1733839875893,-1257.96,0.00011096,2]
[344859942,1733839875903,-654.3,0.00011096,2]
[344859943,1733839875913,-500.0,0.00011096,2]
[344859944,1733839875922,-832.33,0.00011096,2]
[344859945,1733839875932,-1363.84,0.00011096,2]
[344859946,1733839875941,-500.0,0.00011096,2]
[344859947,1733839875951,-660.0,0.00011096,2]
[344859948,1733839875960,-500.0,0.00011096,2]
[344859949,1733839875969,-500.0,0.00011096,2]
[344859950,1733839875978,-500.0,0.00011096,2]
[344859951,1733839875988,-500.0,0.00011096,2]
[344859952,1733839875997,-504.03,0.00011096,2]
[344859953,1733839876006,-580.89155854,0.00011096,2]
[344859954,1733839876016,-686.61,0.00011096,2]
[344859955,1733839876025,-500.0,0.00011096,2]
[344859956,1733839876034,-526.69,0.00011096,2]
[344859957,1733839876043,-926.29,0.00011096,2]
[344859958,1733839876052,-859.27,0.00011096,2]
[344859959,1733839876062,-2281.05,0.00011096,2]
[344859960,1733839876071,-853.14,0.00011096,2]
[344859961,1733839876081,-500.0,0.00011096,2]
[344859962,1733839876091,-500.0,0.00011096,2]
[344859963,1733839876100,-769.95,0.00011096,2]
[344859964,1733839876109,-188.97355909,0.00011096,2]
[344859965,1733839876118,-500.0,0.00011096,2]
[344859966,1733839876127,-753.51,0.00011096,2]
[344859967,1733839876137,-500.0,0.00011096,2]
[344859968,1733839876146,-500.0,0.00011096,2]
[344859969,1733839876155,-500.0,0.00011096,2]
[344859970,1733839876164,-500.0,0.00011096,2]
[344859971,1733839876173,-500.0,0.00011096,2]
[344859972,1733839876183,-671.79,0.00011096,2]
[344859973,1733839876193,-500.0,0.00011096,2]
[344859974,1733839876203,-793.9,0.00011096,2]
[344859975,1733839876213,-500.0,0.00011096,2]
[344859976,1733839876223,-1423.68,0.00011096,2]
[344859977,1733839876232,-551.96,0.00011096,2]
[344859978,1733839876242,-500.0,0.00011096,2]
[344859979,1733839876252,-514.26,0.00011096,2]
[344859980,1733839876261,-500.0,0.00011096,2]
[344859981,1733839876271,-351.49,0.00011096,2]
[344859982,1733839876280,-1027.75,0.00011096,2]
[344859983,1733839876289,-500.0,0.00011096,2]
[344859984,1733839876299,-500.0,0.00011096,2]
[344859985,1733839876309,-500.0,0.00011096,2]
[344859986,1733839876319,-500.0,0.00011096,2]
[344859987,1733839876330,-921.86,0.00011096,2]
[344859988,1733839876340,-500.0,0.00011096,2]
[344859989,1733839876350,-500.0,0.00011096,2]
[344859990,1733839876360,-500.0,0.00011096,2]
[344859991,1733839876369,-500.0,0.00011096,2]
[344859992,1733839876379,-557.9,0.00011096,2]
[344859993,1733839876388,-500.0,0.00011096,2]
[344859994,1733839876397,-648.11968307,0.00011096,2]
[344859995,1733839876406,-500.0,0.00011096,2]
[344859996,1733839876416,-500.0,0.00011096,2]
[344859997,1733839876425,-1239.78,0.00011096,2]
[344859998,1733839876434,-572.87,0.00011096,2]
[344859999,1733839876443,-892.62,0.00011096,2]
[344860000,1733839876453,-545.73,0.00011096,2]
[344860001,1733839876462,-500.0,0.00011096,2]
[344860002,1733839876475,-500.0,0.00011096,2]
[344860003,1733839876484,-500.0,0.00011096,2]
[344860004,1733839876493,-1437.4,0.00011096,2]
[344860005,1733839876503,-1437.4,0.00011096,2]
[344860006,1733839876512,-776.4,0.00011096,2]
[344860007,1733839876522,-1598.86,0.00011096,2]
[344860008,1733839876532,-1233.92,0.00011096,2]
[344860009,1733839876542,-848.11,0.00011096,2]
[344860010,1733839876551,-488.68,0.00011096,2]
[344860011,1733839876560,-727.9,0.00011096,2]
[344860012,1733839876570,-608.96,0.00011096,2]
[344860013,1733839876582,-608.96,0.00011096,2]
[344860014,1733839876591,-5393.4,0.00011096,2]
[344860015,1733839876600,-1090.63,0.00011096,2]
[344860016,1733839876609,-676.99,0.00011096,2]
[344860017,1733839876619,-3447.48,0.00011096,2]
[344860018,1733839876628,-1325.86,0.00011096,2]
[344860019,1733839876638,-1069.57,0.00011096,2]
[344860020,1733839876647,-1069.57,0.00011096,2]
[344860021,1733839876657,-500.0,0.00011096,2]
[344860022,1733839876666,-847.76,0.00011096,2]
[344860023,1733839876675,-500.0,0.00011096,2]
[344860024,1733839876684,-500.0,0.00011096,2]
[344860025,1733839876694,-500.0,0.00011096,2]
[344860026,1733839876703,-286.12,0.00011096,2]
[344860027,1733839876712,-635.02,0.00011096,2]
[344860028,1733839876722,-631.43503406,0.00011096,2]
[344860029,1733839876731,-500.0,0.00011096,2]
[344860030,1733839876741,-2740.12,0.00011096,2]
[344860031,1733839876751,-2740.12,0.00011096,2]
[344860032,1733839876760,-500.0,0.00011097,2]
[344860033,1733839876769,-500.97795235,0.00011097,2]
[344860034,1733839876779,-500.0,0.00011097,2]
[344860035,1733839876788,-506.70191594,0.00011097,2]
[344860036,1733839876798,-500.0,0.00011097,2]
[344860037,1733839876807,-500.0,0.00011097,2]
[344860038,1733839876816,-500.0,0.00011097,2]
[344860039,1733839876832,-503.30547972,0.00011097,2]
[344860040,1733839876841,-502.08965477,0.00011097,2]
[344860041,1733839876851,-601.08,0.00011097,2]
[344860042,1733839876860,-601.08,0.00011097,2]
[344860043,1733839876869,-601.08,0.00011097,2]
[344860044,1733839876878,-500.0,0.00011097,2]
[344860045,1733839876887,-502.2814004,0.00011097,2]
[344860046,1733839876896,-554.21,0.00011097,2]
[344860047,1733839876906,-501.7052007,0.00011097,2]
[344860048,1733839876915,-554.21,0.00011097,2]
[344860049,1733839876924,-554.21,0.00011097,2]
[344860050,1733839876934,-500.0,0.00011097,2]
[344860051,1733839876943,-500.0,0.00011097,2]
[344860052,1733839876953,-500.0,0.00011097,2]
[344860053,1733839876962,-500.0,0.00011097,2]
[344860054,1733839876971,-500.0,0.00011097,2]
[344860055,1733839876980,-500.0,0.00011097,2]
[344860056,1733839876989,-500.0,0.00011097,2]
[344860057,1733839876998,-500.0,0.00011097,2]
[344860058,1733839877007,-500.0,0.00011097,2]
[344860059,1733839877016,-500.0,0.00011097,2]
[344860060,1733839877025,-502.98872746,0.00011097,2]
[344860061,1733839877035,-500.0,0.00011097,2]
[344860062,1733839877044,-500.0,0.00011097,2]
[344860063,1733839877054,-500.0,0.00011097,2]
[344860064,1733839877063,-560.47,0.00011097,2]
[344860065,1733839877076,-1202.45,0.00011097,2]
[344860066,1733839877085,-1202.45,0.00011097,2]
[344860067,1733839877094,-1202.45,0.00011097,2]
[344860068,1733839877103,-1202.45,0.00011097,2]
[344860069,1733839877112,-500.0,0.00011097,2]
[344860070,1733839877121,-464.69937291,0.00011097,2]
[344860071,1733839877130,-754.12,0.00011097,2]
[344860072,1733839877139,-754.12,0.00011097,2]
[344860073,1733839877148,-754.12,0.00011097,2]
[344860074,1733839877157,-754.12,0.00011097,2]
[344860075,1733839877167,-628.82,0.00011097,2]
[344860076,1733839877176,-500.0,0.00011097,2]
[344860077,1733839877186,-500.0,0.00011097,2]
[344860078,1733839877195,-584.17224697,0.00011097,2]
[344860079,1733839877206,-500.0,0.00011097,2]
[344860080,1733839877216,-500.0,0.00011097,2]
[344860081,1733839877225,-500.0,0.00011097,2]
[344860082,1733839877234,-500.0,0.00011097,2]